bitfinex/quotes_SOLUSD_20251201
["timestamp","ask_amount","ask_price","bid_price","bid_amount"]
[1764572618969,8.80994492,126.84,126.82,4.47801105]
[1764572619176,8.80994492,126.84,126.81,5.19801105]
[1764572619388,62.9,126.83,126.82,0.72]
[1764572620284,62.9,126.83,126.82,7.88519161]
[1764572621780,62.9,126.83,126.82,8.60519161]
[1764572621979,62.9,126.83,126.82,13.08320266]
[1764572623299,62.9,126.83,126.82,8.60519161]
[1764572623496,62.9,126.83,126.82,13.08320266]
[1764572628795,62.9,126.86,126.82,32.79618168]
[1764572628999,62.9,126.86,126.85,4.47801105]
[1764572629199,62.9,126.87,126.85,4.47801105]
[1764572629790,62.9,126.87,126.85,12.36088239]
[1764572630816,4.17,126.86,126.85,7.88287134]
[1764572631490,3.48,126.86,126.85,7.88287134]
[1764572634188,3.48,126.86,126.85,13.08088239]
[1764572636396,62.9,126.87,126.85,32.78919929]
[1764572636609,12.28994492,126.9,126.86,5.14801105]
[1764572636799,12.28994492,126.9,126.88,4.47801105]
[1764572637144,12.98994492,126.9,126.87,5.14801105]
[1764572637585,12.28994492,126.9,126.87,4.47801105]
[1764572637787,12.98994492,126.9,126.87,5.14801105]
[1764572638501,12.98994492,126.9,126.87,13.02957719]
[1764572641512,62.9,126.91,126.89,4.47801105]
[1764572641709,3.48,126.93,126.9,4.47801105]
[1764572641901,3.48,126.93,126.92,4.47801105]
[1764572642290,3.48,126.93,126.92,5.14801105]
[1764572642692,3.48000001,126.96,126.92,5.14801105]
[1764572642900,3.48000001,126.96,126.9,4.47801105]
[1764572642901,3.48000001,126.96,126.95,4.47801105]
[1764572643311,3.48000001,126.96,126.95,5.14801105]
[1764572643510,3.48000001,126.96,126.95,13.02512802]
[1764572644402,3.48000001,126.96,126.95,7.87711697]
[1764572644711,1e-08,126.96,126.95,13.02512802]
[1764572647796,0.70000001,126.96,126.95,7.87711697]
[1764572647991,1e-08,126.96,126.95,7.87711697]
[1764572649817,62.9,126.95,126.94,7.87755216]
[1764572650116,63.6,126.95,126.92,7.87863432]
[1764572650414,63.6,126.95,126.92,8.54863432]
[1764572652197,63.6,126.95,126.92,11.41284561]
[1764572652593,8.80994492,126.94,126.92,7.87863432]
[1764572652820,9.50994492,126.94,126.92,7.87863432]
[1764572653432,3.48,126.93,126.92,7.87863432]
[1764572655316,62.9,126.95,126.92,31.11029282]
[1764572655526,62.9,126.95,126.93,3.53421129]
[1764572655707,62.9,126.95,126.93,0.67]
[1764572655912,12.98994492,126.94,126.91,7.87935266]
[1764572656307,12.98994492,126.94,126.91,8.54935266]
[1764572656503,12.28994492,126.94,126.89,16.308864]
[1764572656732,8.80994492,126.92,126.87,3.53421129]
[1764572656911,8.80994492,126.9,126.86,6.34421129]
[1764572657102,8.80994492,126.9,126.85,27.59164366]
[1764572657103,8.80994492,126.9,126.87,3.53421129]
[1764572657418,3.48,126.91,126.88,2.86421129]
[1764572657626,3.48,126.91,126.88,3.53421129]
[1764572657927,4.18,126.91,126.88,3.53421129]
[1764572658301,4.18,126.91,126.88,0.67]
[1764572658719,4.18,126.91,126.88,8.55094066]
[1764572659420,3.48,126.91,126.89,3.53421129]
[1764572659648,3.48,126.91,126.9,2.86421129]
[1764572659804,4.18,126.93,126.9,3.53421129]
[1764572660403,4.18,126.93,126.9,0.67]
[1764572661129,4.18,126.93,126.91,7.87959971]
[1764572662209,3.48,126.93,126.9,7.88022064]
[1764572662410,0.7,126.92,126.9,7.88022064]
[1764572662617,3.56421129,126.92,126.9,7.88022064]
[1764572662825,12.37415621,126.92,126.9,7.88022064]
[1764572663021,75.27415621,126.91,126.85,20.37714946]
[1764572663217,11.67415621,126.89,126.85,7.88320108]
[1764572663423,8.80994492,126.87,126.85,7.88320108]
[1764572665518,8.80994492,126.87,126.85,8.55320108]
[1764572666431,3.48,126.88,126.86,0.7]
[1764572666640,3.48,126.88,126.86,3.56421129]
[1764572667023,3.48,126.88,126.87,0.7]
[1764572667426,2.86421129,126.91,126.87,3.56421129]
[1764572667427,8.80994492,126.91,126.87,3.56421129]
[1764572667623,8.80994492,126.91,126.88,2.86421129]
[1764572667624,3.48,126.9,126.88,2.86421129]
[1764572667826,3.48,126.9,126.88,3.56421129]
[1764572668543,3.48,126.9,126.89,7.88084167]
[1764572669015,3.48,126.9,126.89,8.58084167]
[1764572671123,3.48,126.92,126.89,31.14715714]
[1764572671453,3.48,126.92,126.9,3.54421129]
[1764572671637,12.28994492,126.94,126.9,3.54421129]
[1764572671945,12.97994492,126.94,126.9,3.54421129]
[1764572672155,12.97994492,126.94,126.91,7.87959971]
[1764572672847,12.28994492,126.94,126.92,0.68]
[1764572673229,12.97994492,126.94,126.91,8.55959971]
[1764572673429,0.69,126.93,126.9,7.88000907]
[1764572674347,3.48,126.92,126.9,7.88000907]
[1764572675423,0.69,126.91,126.89,7.88071769]
[1764572675628,3.48,126.9,126.89,7.88071769]
[1764572676947,3.48,126.9,126.88,27.58397329]
[1764572677249,3.48,126.9,126.88,28.26397329]
[1764572679230,3.48,126.9,126.88,8.56146279]
[1764572679426,0.69,126.89,126.8,39.43016215]
[1764572679631,63.59,126.89,126.84,19.17307529]
[1764572679825,11.67415621,126.88,126.83,2.86421129]
[1764572680027,3.48,126.87,126.83,2.86421129]
[1764572680249,4.17,126.87,126.84,0.68]
[1764572681149,4.17,126.87,126.84,8.56363826]
[1764572683250,7.03421129,126.87,126.84,7.88363826]
[1764572683748,4.17,126.87,126.84,7.88363826]
[1764572684834,4.17,126.87,126.84,8.56363826]
[1764572685247,4.17,126.87,126.84,7.88363826]
[1764572686948,4.17,126.87,126.84,8.56363826]
[1764572687155,3.48,126.87,126.84,7.88363826]
[1764572687459,0.69,126.86,126.84,7.88363826]
[1764572687755,63.59,126.86,126.84,7.88363826]
[1764572687962,0.69,126.86,126.84,7.88363826]
[1764572688142,66.38,126.87,126.84,8.56363826]
[1764572688343,67.07,126.87,126.84,8.56363826]
[1764572690858,74.9522059,126.87,126.84,8.56363826]
[1764572693569,74.9522059,126.87,126.84,0.68]
[1764572693768,0.69,126.86,126.83,11.42849167]
[1764572695360,0.69,126.86,126.83,10.74849167]
[1764572695562,0.69,126.86,126.84,0.68]
[1764572696065,66.38,126.85,126.83,2.86421129]
[1764572696269,66.38,126.85,126.84,0.71]
[1764572697256,66.38,126.85,126.84,3.57421129]
[1764572697567,62.9,126.85,126.84,11.45815957]
[1764572698065,62.9,126.85,126.84,8.59394828]
[1764572699671,62.9,126.85,126.84,7.88394828]
[1764572699972,62.9,126.85,126.84,8.59394828]
[1764572700965,62.9,126.85,126.83,10.74850968]
[1764572701169,8.80994492,126.83,126.79,8.08684618]
[1764572701350,3.48,126.82,126.79,8.08684618]
[1764572701546,4.18,126.82,126.79,8.08684618]
[1764572701751,4.18,126.82,126.79,11.66105747]
[1764572704574,3.48,126.82,126.8,3.57421129]
[1764572704748,3.48,126.82,126.81,2.86421129]
[1764572704945,3.48,126.82,126.81,3.57421129]
[1764572705968,3.48,126.82,126.81,11.46002471]
[1764572706654,3.48,126.82,126.81,8.59581342]
[1764572707371,3.48,126.82,126.81,7.88581342]
[1764572709874,3.48,126.82,126.81,11.46002471]
[1764572710277,66.38,126.84,126.81,11.46002471]
[1764572710458,66.38,126.84,126.81,13.07853325]
[1764572710660,67.08,126.84,126.81,13.07853325]
[1764572711455,66.38,126.84,126.82,0.71]
[1764572711773,62.9,126.83,126.82,8.59519161]
[1764572713381,62.9,126.83,126.82,7.88519161]
[1764572715760,8.80994492,126.82,126.79,4.68271983]
[1764572716078,75.18994492,126.82,126.8,7.88643533]
[1764572716275,75.87994492,126.82,126.8,7.88643533]
[1764572717677,9.49994492,126.81,126.79,8.08675994]
[1764572717851,8.80994492,126.81,126.79,8.75675994]
[1764572718050,8.80994492,126.81,126.79,13.23947977]
[1764572719482,12.97994492,126.8,126.79,0.2]
[1764572721961,3.48,126.8,126.79,13.23977716]
[1764572723283,95.79158383,126.84,126.79,13.23977716]
[1764572723284,12.28994492,126.85,126.79,36.4374205]
[1764572723467,12.97994492,126.85,126.81,4.48271983]
[1764572723889,12.28994492,126.85,126.81,5.15271983]
[1764572724184,0.69,126.84,126.79,32.9574205]
[1764572724479,12.28994492,126.83,126.79,32.9574205]
[1764572724698,12.28994492,126.83,126.81,7.88581342]
[1764572724879,12.97994492,126.83,126.81,7.88581342]
[1764572725189,12.28994492,126.83,126.81,7.88581342]
[1764572725389,12.28994492,126.83,126.82,0.67]
[1764572725889,12.28994492,126.83,126.82,13.03791144]
[1764572726385,62.9,126.86,126.82,13.03791144]
[1764572726690,62.9,126.86,126.84,4.48271983]
[1764572727086,62.9,126.86,126.84,5.19271983]
[1764572727788,62.9,126.86,126.85,7.88332676]
[1764572729079,63.6,126.86,126.84,7.88394828]
[1764572729280,3.48,126.85,126.84,7.88394828]
[1764572730193,3.48,126.85,126.83,7.88456989]
[1764572730376,76.89266475,126.84,126.79,5.39271983]
[1764572730575,8.80994492,126.82,126.79,5.39271983]
[1764572730777,3.48,126.81,126.79,0.91]
[1764572730969,4.18,126.81,126.79,8.0868439]
[1764572731194,3.48,126.81,126.79,8.0868439]
[1764572731495,3.48,126.81,126.79,8.7968439]
[1764572732877,3.48,126.81,126.79,8.0868439]
[1764572733078,3.48,126.81,126.79,8.7768439]
[1764572733283,3.48,126.81,126.79,13.25956373]
[1764572735196,12.28994492,126.81,126.8,0.69]
[1764572735599,12.28994492,126.81,126.79,13.25956373]
[1764572736986,72.42994492,126.8,126.79,0.2]
[1764572741805,96.89910008,126.8,126.79,0.2]
[1764572742691,17.41638025,126.8,126.79,0.2]
[1764572742895,20.89638025,126.8,126.79,0.2]
[1764572743397,25.37910008,126.8,126.79,0.2]
[1764572746804,20.89638025,126.8,126.79,0.2]
[1764572747007,25.37910008,126.8,126.79,0.2]
[1764572748606,100.37910008,126.8,126.79,0.2]
[1764572750502,95.89638025,126.8,126.79,0.2]
[1764572751790,100.37910008,126.8,126.79,0.2]
[1764572752695,25.37910008,126.8,126.79,0.2]
[1764572752903,20.89638025,126.8,126.79,0.2]
[1764572753102,25.37910008,126.8,126.79,0.2]
[1764572753302,100.37910008,126.8,126.79,0.2]
[1764572758028,112.20524425,126.8,126.79,0.2]
[1764572758235,116.67796408,126.8,126.79,0.2]
[1764572758602,20.88638025,126.8,126.79,0.2]
[1764572758802,12.28994492,126.8,126.79,0.2]
[1764572759833,25.36910008,126.8,126.79,0.2]
[1764572761927,100.36910008,126.8,126.79,0.2]
[1764572763026,116.67796408,126.8,126.79,0.2]
[1764572767010,150.99266475,126.78,126.77,0.2]
[1764572767309,91.77266475,126.78,126.77,0.2]
[1764572767509,8.80994492,126.78,126.77,0.87]
[1764572767831,16.77266475,126.78,126.77,0.2]
[1764572768505,17.48266475,126.78,126.77,0.2]
[1764572768712,92.48266475,126.78,126.77,0.2]
[1764572769020,100.37034419,126.78,126.77,0.2]
[1764572771316,121.16192802,126.78,126.77,0.2]
[1764572772217,62.5,126.76,126.74,0.2]
[1764572772532,65.98,126.75,126.74,0.2]
[1764572772738,74.78994492,126.75,126.74,0.87]
[1764572776032,82.67949127,126.75,126.74,0.2]
[1764572776513,86.26335217,126.75,126.74,0.2]
[1764572776712,23.76335217,126.75,126.74,0.2]
[1764572782333,115.07221617,126.75,126.74,0.2]
[1764572787019,135.5,126.73,126.72,0.2]
[1764572787223,90.16380582,126.73,126.72,0.2]
[1764572787929,98.05459726,126.73,126.72,0.2]
[1764572793520,98.75459726,126.73,126.72,0.2]
[1764572794121,98.05459726,126.73,126.72,0.2]
[1764572795644,95.18073636,126.73,126.72,0.2]
[1764572795839,8.80994492,126.73,126.72,0.92]
[1764572796027,12.28994492,126.73,126.72,8.81141414]
[1764572798443,12.28994492,126.73,126.72,11.68527504]
[1764572798444,3.48,126.73,126.72,11.68527504]
[1764572798748,3.48,126.73,126.72,8.81141414]
[1764572799247,3.48,126.73,126.72,11.68527504]
[1764572799540,3.48,126.78,126.72,42.90925399]
[1764572799740,8.80994492,126.77,126.76,2.8738609]
[1764572800123,8.80994492,126.77,126.76,3.5938609]
[1764572800324,8.80994492,126.77,126.76,11.48278485]
[1764572800645,8.80994492,126.77,126.76,8.60892395]
[1764572800943,10.76111574,126.79,126.76,11.48278485]
[1764572800944,12.28994492,126.79,126.76,11.48278485]
[1764572801121,12.28994492,126.79,126.78,2.8738609]
[1764572801328,12.28994492,126.79,126.77,3.5938609]
[1764572801729,12.28994492,126.79,126.78,0.72]
[1764572801928,12.28994492,126.79,126.77,8.60790371]
[1764572802227,8.80994492,126.79,126.77,7.88790371]
[1764572802434,62.9,126.8,126.78,3.5938609]
[1764572802629,12.28994492,126.81,126.78,3.5938609]
[1764572802843,12.28994492,126.81,126.79,0.72]
[1764572803423,16.308864,126.83,126.8,2.8738609]
[1764572803733,12.28994492,126.82,126.79,3.5938609]
[1764572804148,12.28994492,126.82,126.8,0.72]
[1764572805428,20.17513653,126.82,126.8,0.72]
[1764572807548,20.87513653,126.82,126.79,8.60662443]
[1764572807925,62.9,126.81,126.79,8.60662443]
[1764572808231,3.48,126.8,126.79,8.60662443]
[1764572808432,12.28994492,126.8,126.79,0.72]
[1764572808632,71.70994492,126.79,126.76,7.88854981]
[1764572808940,66.38,126.78,126.76,8.60854981]
[1764572809662,8.80994492,126.77,126.76,0.72]
[1764572809835,8.80994492,126.77,126.75,0.72]
[1764572810037,12.28994492,126.76,126.75,0.72]
[1764572810637,8.80994492,126.75,126.72,0.2]
[1764572810836,8.80994492,126.73,126.72,0.2]
[1764572813654,20.27459726,126.73,126.72,0.2]
[1764572817442,17.40073636,126.73,126.72,0.2]
[1764572817649,20.27459726,126.73,126.72,0.2]
[1764572818331,19.57459726,126.73,126.72,0.2]
[1764572818533,20.25459726,126.73,126.72,0.2]
[1764572820868,62.5,126.71,126.7,0.2]
[1764572821160,62.5,126.71,126.7,1e-08]
[1764572821161,165.16380582,126.71,126.7,1e-08]
[1764572821333,165.84380582,126.71,126.7,1e-08]
[1764572822545,158.80994492,126.71,126.7,1e-08]
[1764572822739,182.15266982,126.71,126.7,1e-08]
[1764572822940,190.04470675,126.71,126.7,1e-08]
[1764572823265,189.36470675,126.71,126.7,1e-08]
[1764572825146,190.04470675,126.71,126.7,1e-08]
[1764572827955,173.73584275,126.71,126.7,1e-08]
[1764572830153,173.73584275,126.71,126.67,0.2]
[1764572830154,175.11880892,126.68,126.67,0.2]
[1764572830350,181.47266982,126.68,126.67,0.2]
[1764572830550,182.15266982,126.68,126.67,0.2]
[1764572831363,165.84380582,126.68,126.66,0.2]
[1764572831565,23.85924942,126.67,126.66,0.2]
[1764572832160,31.75377851,126.67,126.66,0.2]
[1764572832354,26.38276057,126.67,126.66,0.2]
[1764572833272,175.11880892,126.65,126.63,0.2]
[1764572833473,183.0979522,126.65,126.63,0.2]
[1764572833776,108.0979522,126.65,126.63,0.2]
[1764572834153,103.59880892,126.65,126.64,0.87]
[1764572834556,166.49880892,126.65,126.64,0.87]
[1764572835174,178.89372795,126.65,126.64,0.2]
[1764572836468,253.89372795,126.65,126.64,0.2]
[1764572836667,254.57372795,126.65,126.64,0.2]
[1764572837059,253.89372795,126.65,126.64,0.2]
[1764572837574,150.18994492,126.65,126.64,0.87]
[1764572838878,3.48,126.65,126.64,13.26554252]
[1764572839264,3.48,126.65,126.64,0.87]
[1764572839453,62.9,126.66,126.64,13.26546391]
[1764572839649,62.9,126.66,126.65,5.16914328]
[1764572840665,8.80994492,126.69,126.66,7.89515237]
[1764572840882,12.30994492,126.69,126.67,4.49914328]
[1764572841180,12.30994492,126.69,126.67,0.67]
[1764572841483,12.30994492,126.69,126.68,0.67]
[1764572849380,3.5,126.69,126.68,21.08192494]
[1764572849584,3.5,126.69,126.68,8.5639059]
[1764572849585,12.30994492,126.69,126.68,8.5639059]
[1764572849761,12.30994492,126.69,126.68,0.67]
[1764572850400,8.80994492,126.68,126.65,12.51801904]
[1764572850558,3.5,126.67,126.65,20.41375615]
[1764572851059,3.5,126.67,126.66,0.7]
[1764572852073,3.5,126.67,126.66,13.21801904]
[1764572852476,3.5,126.67,126.66,21.11317141]
[1764572853983,62.9,126.68,126.66,40.85105235]
[1764572854205,3.5,126.7,126.67,13.21801904]
[1764572854502,3.5,126.7,126.68,20.41149638]
[1764572854668,3.5,126.7,126.69,0.7]
[1764572855070,3.5,126.7,126.69,13.21801904]
[1764572855373,12.30994492,126.72,126.69,13.21801904]
[1764572855582,12.30994492,126.72,126.7,0.7]
[1764572857584,12.30994492,126.72,126.7,8.59262965]
[1764572857989,12.30994492,126.72,126.71,0.71]
[1764572858988,3.5,126.72,126.71,0.71]
[1764572860198,8.80994492,126.72,126.71,0.71]
[1764572860383,12.28994492,126.72,126.71,0.71]
[1764572860694,3.48,126.72,126.71,8.60203693]
[1764572861286,3.48,126.72,126.71,21.12005597]
[1764572861478,71.70994492,126.73,126.71,21.12005597]
[1764572861677,3.48,126.72,126.71,20.41005597]
[1764572862385,3.48,126.72,126.71,21.12005597]
[1764572863197,3.48,126.72,126.71,8.60203693]
[1764572863494,3.48,126.72,126.71,21.12005597]
[1764572864399,3.48,126.72,126.71,13.09231427]
[1764572865094,3.48,126.72,126.71,8.60203693]
[1764572865595,3.48,126.72,126.71,7.89203693]
[1764572867103,3.48,126.72,126.71,8.60203693]
[1764572867282,66.38,126.72,126.71,8.60203693]
[1764572867990,66.38,126.72,126.7,0.71]
[1764572868297,66.38,126.72,126.7,5.20027734]
[1764572868693,66.38,126.72,126.71,0.71]
[1764572869601,66.38,126.72,126.71,8.60203693]
[1764572870597,66.38,126.72,126.7,8.60236221]
[1764572873897,66.38,126.72,126.7,7.89236221]
[1764572874216,66.38,126.72,126.7,8.60236221]
[1764572878812,66.38,126.72,126.71,0.7]
[1764572879520,66.38,126.72,126.71,8.59203693]
[1764572879715,66.38,126.72,126.71,0.7]
[1764572880620,66.38,126.72,126.7,7.89233785]
[1764572880621,66.38,126.72,126.7,8.59233785]
[1764572881321,66.38,126.72,126.7,7.89233785]
[1764572881499,66.38,126.72,126.71,0.7]
[1764572882820,66.38,126.72,126.71,13.08231427]
[1764572883026,3.48,126.74,126.71,32.8124066]
[1764572883322,3.48,126.74,126.72,5.19027734]
[1764572883718,62.9,126.77,126.73,5.19027734]
[1764572883922,3.48,126.77,126.75,4.49027734]
[1764572884311,3.48,126.77,126.76,0.7]
[1764572884617,3.48,126.77,126.74,4.49027734]
[1764572884849,3.48,126.77,126.75,12.37982369]
[1764572885224,3.48,126.77,126.75,8.58954635]
[1764572885417,3.48,126.77,126.76,0.7]
[1764572886105,3.48,126.77,126.75,13.07982369]
[1764572886406,3.48,126.77,126.75,8.58954635]
[1764572887120,0.7,126.76,126.72,5.19027734]
[1764572887421,3.48,126.75,126.73,0.7]
[1764572887814,3.48,126.75,126.73,5.19027734]
[1764572888215,3.48,126.75,126.73,13.0808518]
[1764572888416,5.19027734,126.74,126.71,7.89203693]
[1764572888711,5.19027734,126.74,126.7,8.592432]
[1764572888712,7.97027734,126.73,126.7,8.592432]
[1764572889024,8.67027734,126.73,126.7,7.892432]
[1764572889224,0.7,126.72,126.7,7.892432]
[1764572889425,3.48,126.71,126.7,7.892432]
[1764572889724,3.48,126.71,126.7,8.592432]
[1764572890116,3.48,126.71,126.68,0.7]
[1764572890317,4.18,126.71,126.68,8.59364454]
[1764572890628,8.67027734,126.71,126.68,8.59364454]
[1764572890923,4.18,126.71,126.68,8.59364454]
[1764572892627,3.48,126.71,126.68,8.59364454]
[1764572893021,4.18,126.71,126.68,8.59364454]
[1764572893926,67.08,126.71,126.68,8.59364454]
[1764572895023,2.87542239,126.69,126.66,0.7]
[1764572895220,3.48,126.68,126.66,0.7]
[1764572896030,3.57542239,126.67,126.64,8.79617953]
[1764572896917,2.87542239,126.67,126.65,0.7]
[1764572897520,3.57542239,126.67,126.64,8.79617953]
[1764572898831,11.47006685,126.67,126.64,0.9]
[1764572899213,14.24948773,126.68,126.65,0.7]
[1764572899411,14.94948773,126.68,126.65,0.7]
[1764572899729,3.48,126.68,126.65,0.7]
[1764572900038,14.94946138,126.68,126.65,0.7]
[1764572900532,12.38536731,126.67,126.64,0.2]
[1764572900737,2.87542239,126.66,126.64,0.2]
[1764572900915,3.48,126.65,126.64,0.2]
[1764572901635,3.48,126.65,126.64,0.9]
[1764572902040,3.48,126.65,126.64,0.2]
[1764572902414,3.48,126.65,126.64,0.9]
[1764572902711,62.9,126.68,126.64,11.67182163]
[1764572903038,3.48,126.67,126.65,0.7]
[1764572904042,3.48,126.67,126.65,3.57542239]
[1764572904419,3.48,126.67,126.66,0.7]
[1764572905430,62.9,126.68,126.66,3.57542239]
[1764572905733,62.9,126.68,126.67,2.87542239]
[1764572905935,3.48,126.69,126.67,3.56542239]
[1764572906134,3.48,126.69,126.68,3.56542239]
[1764572906310,3.48,126.69,126.68,11.45932829]
[1764572907741,62.9,126.71,126.68,11.45932829]
[1764572907936,3.48,126.71,126.69,3.56542239]
[1764572908442,3.48,126.71,126.7,11.45808221]
[1764572909027,3.48,126.73,126.7,11.45808221]
[1764572909253,3.48,126.73,126.71,3.56542239]
[1764572909713,62.9,126.76,126.72,3.56542239]
[1764572910044,12.28994492,126.76,126.73,2.87542239]
[1764572910247,12.94994492,126.76,126.73,3.56542239]
[1764572910845,12.94994492,126.76,126.73,11.45582048]
[1764572911814,12.28994492,126.76,126.74,8.58016631]
[1764572912026,3.48,126.76,126.74,11.4555887]
[1764572912226,3.48,126.76,126.74,8.58016631]
[1764572912425,3.48,126.76,126.74,11.4555887]
[1764572914138,0.66,126.75,126.73,7.89049354]
[1764572914322,0.66,126.75,126.72,7.891104]
[1764572914856,0.66,126.75,126.72,10.76652639]
[1764572915232,0.66,126.75,126.72,11.45652639]
[1764572915440,3.48,126.76,126.73,3.56542239]
[1764572917644,3.48,126.76,126.74,10.76559123]
[1764572917841,66.38,126.76,126.74,11.46559123]
[1764572919555,66.38,126.76,126.74,7.89016884]
[1764572919728,67.06,126.76,126.74,7.89016884]
[1764572920353,72.38994492,126.75,126.72,7.89109254]
[1764572920544,3.48,126.74,126.72,7.89109254]
[1764572920730,4.16,126.74,126.72,7.89109254]
[1764572923556,0.68,126.73,126.71,27.62149338]
[1764572924250,3.48,126.72,126.71,27.62149338]
[1764572926233,3.48,126.72,126.71,19.72945645]
[1764572928355,3.48,126.72,126.7,7.89265982]
[1764572928540,4.16,126.72,126.7,7.89265982]
[1764572929540,3.48,126.72,126.7,8.59265982]
[1764572931060,3.48,126.72,126.7,7.89265982]
[1764572931353,4.16,126.72,126.7,7.89265982]
[1764572932255,72.38994492,126.71,126.67,17.008864]
[1764572932461,62.9,126.7,126.67,19.88428639]
[1764572932646,62.9,126.7,126.67,19.18428639]
[1764572932846,62.9,126.7,126.68,0.7]
[1764572933048,66.38,126.7,126.68,8.59349474]
[1764572933250,66.38,126.7,126.68,7.89349474]
[1764572933559,67.06,126.7,126.68,7.89349474]
[1764572934062,0.68,126.69,126.66,7.89515237]
[1764572934244,3.48,126.68,126.66,8.59515237]
[1764572934437,66.38,126.68,126.66,8.59515237]
[1764572935037,66.38,126.68,126.66,7.89515237]
[1764572935256,66.38,126.68,126.67,0.7]
[1764572935444,66.38,126.68,126.66,11.47057476]
[1764572935646,66.38,126.68,126.66,8.59515237]
[1764572936655,62.9,126.68,126.67,3.56542239]
[1764572937242,62.9,126.68,126.67,11.45995148]
[1764572938463,62.9,126.7,126.67,11.45995148]
[1764572938654,63.59,126.7,126.67,11.45995148]
[1764572938863,15.85536731,126.69,126.66,7.89515237]
[1764572939059,15.85536731,126.69,126.65,7.89552765]
[1764572939374,0.69,126.68,126.65,8.58552765]
[1764572940068,15.16536731,126.67,126.64,0.2]
[1764572940452,0.69,126.66,126.64,0.2]
[1764572940656,3.48,126.65,126.64,0.89]
[1764572941370,3.48,126.65,126.64,0.2]
[1764572941671,3.48,126.65,126.64,8.78639924]
[1764572942167,3.48,126.65,126.64,11.66182163]
[1764572942467,3.48,126.69,126.64,11.66182163]
[1764572942659,3.48,126.69,126.65,0.69]
[1764572942972,3.48,126.69,126.66,2.87542239]
[1764572943173,3.48,126.69,126.67,3.56542239]
[1764572943473,3.48,126.69,126.67,11.45947292]
[1764572943665,3.48,126.69,126.67,8.58405053]
[1764572944762,170.26927321,126.68,126.64,8.09588619]
[1764572944964,2.87542239,126.66,126.64,8.09588619]
[1764572945171,3.5,126.65,126.64,8.09588619]
[1764572950480,66.4,126.65,126.64,8.09588619]
[1764572951988,75.20994492,126.65,126.64,0.2]
[1764572952165,75.89994492,126.65,126.64,0.2]
[1764572952763,12.99994492,126.65,126.64,0.2]
[1764572954069,8.80994492,126.67,126.64,11.66182163]
[1764572954266,4.17,126.69,126.66,2.87542239]
[1764572954464,8.80994492,126.68,126.66,4.49350467]
[1764572954666,8.80994492,126.68,126.66,5.18350467]
[1764572954878,8.80994492,126.68,126.66,0.69]
[1764572955070,8.80994492,126.68,126.66,13.07855706]
[1764572955795,3.5,126.67,126.64,0.2]
[1764572955998,4.49350467,126.65,126.64,0.2]
[1764572956167,7.99350467,126.65,126.64,0.2]
[1764572956367,8.68350467,126.65,126.64,0.2]
[1764572957092,3.5,126.65,126.64,0.2]
[1764572957281,66.4,126.67,126.64,13.27990391]
[1764572957481,66.4,126.67,126.65,4.49350467]
[1764572957679,66.4,126.67,126.65,5.18350467]
[1764572957880,66.4,126.67,126.66,0.69]
[1764572959195,66.4,126.67,126.65,21.10488164]
[1764572959493,4.19,126.67,126.64,8.09622576]
[1764572959690,4.19,126.67,126.64,8.78622576]
[1764572959903,4.19,126.67,126.64,21.30579757]
[1764572960474,4.19,126.67,126.64,8.78622576]
[1764572962096,3.5,126.67,126.66,12.51957181]
[1764572962272,3.5,126.67,126.65,13.20957181]
[1764572962773,3.5,126.67,126.64,28.52722386]
[1764572963183,3.5,126.67,126.65,0.69]
[1764572964498,3.5,126.67,126.65,8.58521402]
[1764572965301,66.4,126.67,126.65,8.58521402]
[1764572965994,62.9,126.67,126.66,13.23957181]
[1764572967102,62.9,126.67,126.66,21.13472418]